fUST/lending_fUST_20250614
["ID","MTS","AMOUNT","RATE_DAILY","PERIOD"]
[365705892,1749839357463,-1062.392,0.00021651,2]
[365705893,1749839357483,-3754.64,0.000217,2]
[365705894,1749839357512,-206.67042589,0.00021775,5]
[365705895,1749839357533,-420.0,0.00021776,2]
[365705896,1749839357553,-420.0,0.00021777,2]
[365705897,1749839357574,-440.0,0.00021895,4]
[365705898,1749839357594,-481.96,0.00021895,4]
[365705899,1749839357618,-171.92052508,0.00021895,4]
[365705900,1749839357638,-430.0,0.00021895,4]
[365705901,1749839357659,-420.0,0.00021895,4]
[365705902,1749839357680,-430.0,0.00021895,4]
[365705903,1749839357702,-202.36741921,0.00021895,4]
[365705904,1749839357723,-440.0,0.00021895,4]
[365705905,1749839357746,-460.0,0.00021895,4]
[365705906,1749839357767,-460.0,0.00021895,4]
[365705907,1749839357790,-500.0,0.00021915,4]
[365705908,1749839357816,-460.0,0.00021916,4]
[365705909,1749839357839,-460.0,0.00021916,4]
[365705910,1749839357861,-460.0,0.00021916,4]
[365705911,1749839357884,-1179.79,0.00021917,4]
[365705912,1749839357907,-460.0,0.00021917,4]
[365705913,1749839357930,-460.0,0.00021917,4]
[365705914,1749839357952,-460.0,0.00021917,4]
[365705915,1749839357975,-460.0,0.00021917,4]
[365705916,1749839357998,-533.29277763,0.00021917,4]
[365705917,1749839358021,-985.66,0.00021917,4]
[365705918,1749839358044,-460.0,0.00021917,4]
[365705919,1749839358066,-460.0,0.00021917,4]
[365705920,1749839358088,-460.0,0.00021917,4]
[365705921,1749839358109,-5131.77479511,0.0002199,2]
[365705922,1749839358130,-5025.0921074,0.00022,2]
[365705923,1749839358151,-76602.07132239,0.00022,7]
[365705924,1749839358189,460.0,0.00021095,4]
[365705925,1749839358217,460.0,0.00021369,4]
[365705926,1749839358248,460.0,0.00021643,4]
[365705927,1749839358379,460.0,0.00021095,4]
[365705928,1749839358405,460.0,0.00021369,4]
[365705929,1749839358585,162.95482579,0.00020192,2]
[365705930,1749839358676,581.62,0.00021643,4]
[365705931,1749839362155,-589.11,0.00021917,4]
[365705932,1749839362177,-11875.35542628,0.00022,7]
[365705933,1749839366061,460.0,0.00021095,4]
[365705934,1749839366104,-151.0,0.0002199,7]
[365705935,1749839366124,-125712.88229982,0.00022,7]
[365705936,1749839368111,-3889.61221286,0.00022,2]
[365705937,1749839368134,-2735.50879523,0.00022,2]
[365705938,1749839368154,-39430.47095151,0.00022,7]
[365705939,1749839368174,-7355.78459078,0.00022,2]
[365705940,1749839375689,460.0,0.00021368,4]
[365705941,1749839375927,460.0,0.00021642,4]
[365705942,1749839381232,1388.22,0.00021095,4]
[365705943,1749839381482,1388.22,0.00021369,4]
[365705944,1749839381729,1388.22,0.00021643,4]
[365705947,1749839388049,460.0,0.00021095,4]
[365705948,1749839388298,460.0,0.00021369,4]
[365705949,1749839388575,460.0,0.00021643,4]
[365705950,1749839392497,460.0,0.00021095,4]
[365705951,1749839392790,460.0,0.00021369,4]
[365705952,1749839393052,460.0,0.00021643,4]
[365705953,1749839398105,460.0,0.00021095,4]
[365705954,1749839398344,558.05,0.00021369,4]
[365705955,1749839403956,430.0,0.00021095,4]
[365705956,1749839406223,500.0,0.00021095,4]
[365705957,1749839406517,500.0,0.00021095,4]
[365705958,1749839406768,500.0,0.00021367,4]
[365705959,1749839407415,500.0,0.00021641,4]
[365705960,1749839409357,460.0,0.00021368,4]
[365705961,1749839412505,460.0,0.00021095,4]
[365705962,1749839412789,607.23,0.00021369,4]
[365705963,1749839414424,460.0,0.00021095,4]
[365705964,1749839414694,460.0,0.00021369,4]
[365705965,1749839419144,698.22,0.00021368,4]
[365705966,1749839419529,698.22,0.00021642,4]
[365705967,1749839421306,460.0,0.00021095,4]
[365705968,1749839421546,460.0,0.00021369,4]
[365705969,1749839421836,460.0,0.00021643,4]
[365705970,1749839422799,460.0,0.00021095,4]
[365706000,1749839431892,-460.0,0.00021916,4]
[365706001,1749839431903,-698.22,0.00021916,4]
[365706002,1749839431913,-1388.22,0.00021917,4]
[365706003,1749839431923,-460.0,0.00021917,4]
[365706004,1749839431934,-460.0,0.00021917,4]
[365706005,1749839431943,-460.0,0.00021917,4]
[365706006,1749839431953,-300.0,0.00021999,2]
[365706007,1749839431962,-500.0,0.00021999,4]
[365706008,1749839431972,-200.0,0.00021999,2]
[365706009,1749839431981,-11891.19790077,0.00022,2]
[365706010,1749839431997,-4870.6207379,0.00022,2]
[365706061,1749839434988,460.0,0.00021095,4]
[365706062,1749839435196,460.0,0.00021095,4]
[365706063,1749839435473,460.0,0.00021369,4]
[365706064,1749839435731,460.0,0.00021643,4]
[365706071,1749839437853,-460.0,0.00021917,4]
[365706072,1749839437863,-151.0,0.0002199,7]
[365706073,1749839437872,-500.0,0.00021999,2]
[365706074,1749839437881,-258.00391989,0.00021999,2]
[365706075,1749839437891,-479.93704196,0.00021999,2]
[365706076,1749839437900,-117781.10677055,0.00022,2]
[365706077,1749839437909,-151.0,0.00022,7]
[365706078,1749839437919,-151.0,0.00022,7]
[365706079,1749839437928,-3379.18,0.00022,7]
[365706080,1749839437941,-259.909963,0.00022,7]
[365706081,1749839437950,-460.0,0.0002219,4]
[365706082,1749839437959,-460.0,0.0002219,4]
[365706083,1749839437969,-460.0,0.0002219,4]
[365706084,1749839437979,-698.22,0.0002219,4]
[365706085,1749839437990,-460.0,0.00022191,4]
[365706086,1749839437999,-985.66,0.00022191,4]
[365706087,1749839438010,-582.78,0.00022191,4]
[365706088,1749839438020,-460.0,0.00022191,4]
[365706089,1749839438029,-554.82,0.00022191,4]
[365706090,1749839438038,-1388.22,0.00022191,4]
[365706091,1749839438047,-460.0,0.00022191,4]
[365706092,1749839438057,-460.0,0.00022191,4]
[365706093,1749839438066,-460.0,0.00022191,4]
[365706094,1749839438075,-460.0,0.00022191,4]
[365706095,1749839438084,-160.0,0.0002222,2]
[365706096,1749839438093,-160.0,0.0002222,2]
[365706097,1749839438103,-160.0,0.0002222,2]
[365706098,1749839438112,-12531.02669373,0.0002222,2]
[365706099,1749839438121,-160.0,0.0002222,2]
[365706100,1749839438130,-160.0,0.0002222,2]
[365706101,1749839438140,-176.94650001,0.00022264,2]
[365706102,1749839438149,-367.94,0.00022455,3]
[365706103,1749839438158,-460.0,0.00022464,4]
[365706104,1749839438167,-207.39,0.00022464,4]
[365706105,1749839438177,-460.0,0.00022464,4]
[365706106,1749839438186,-698.22,0.00022464,4]
[365706107,1749839438195,-460.0,0.00022465,4]
[365706108,1749839438205,-985.66,0.00022465,4]
[365706109,1749839438214,-460.0,0.00022465,4]
[365706110,1749839438224,-1388.22,0.00022465,4]
[365706111,1749839438235,-460.0,0.00022465,4]
[365706112,1749839438245,-460.0,0.00022465,4]
[365706113,1749839438256,-460.0,0.00022465,4]
[365706114,1749839438266,-485.62435375,0.00022465,4]
[365706115,1749839438276,-162.95482579,0.00022503,2]
[365706116,1749839438285,-294.0,0.00022509,2]
[365706117,1749839438295,-308.37542394,0.00022558,2]
[365706118,1749839438305,-460.0,0.00022738,4]
[365706119,1749839438315,-460.0,0.00022738,4]
[365706120,1749839438324,-698.22,0.00022738,4]
[365706121,1749839438334,-460.0,0.00022739,4]
[365706122,1749839438344,-985.66,0.00022739,4]
[365706123,1749839438354,-290.32,0.00022739,4]
[365706124,1749839438363,-1388.22,0.00022739,4]
[365706125,1749839438373,-460.0,0.00022739,4]
[365706126,1749839438383,-460.0,0.00022739,4]
[365706127,1749839438394,-460.0,0.00022739,4]
[365706128,1749839438404,-151.0,0.0002278,2]
[365706129,1749839438413,-207.4,0.0002278,2]
[365706130,1749839438422,-5000.0,0.0002278,2]
[365706131,1749839438432,-500.0,0.0002278,2]
[365706132,1749839438441,-500.0,0.0002278,2]
[365706133,1749839438451,-500.0,0.0002278,2]
[365706134,1749839438460,-500.0,0.0002278,2]
[365706135,1749839438469,-500.0,0.0002278,2]
[365706136,1749839438478,-500.0,0.0002278,2]
[365706137,1749839438487,-500.0,0.0002278,2]
[365706138,1749839438497,-500.0,0.0002278,2]
[365706139,1749839438506,-500.0,0.0002278,2]
[365706140,1749839438515,-500.0,0.0002278,2]
[365706141,1749839438525,-500.0,0.0002278,2]
[365706142,1749839438534,-500.0,0.0002278,2]
[365706143,1749839438543,-500.0,0.0002278,2]
[365706144,1749839438553,-500.0,0.0002278,2]
[365706145,1749839438562,-500.0,0.0002278,2]
[365706146,1749839438572,-176.94650001,0.00022898,2]
[365706147,1749839438582,-9680.29,0.000229,7]
[365706148,1749839438592,-83483.98448582,0.00023,20]
[365706149,1749839438602,-3028.05637756,0.00023,2]
[365706150,1749839438611,-472.03137363,0.00023012,4]
[365706151,1749839438621,-460.0,0.00023012,4]
[365706152,1749839438631,-500.0,0.00023012,4]
[365706153,1749839438640,-698.22,0.00023012,4]
[365706154,1749839438649,-460.0,0.00023013,4]
[365706155,1749839438659,-985.66,0.00023013,4]
[365706156,1749839438669,-1388.22,0.00023013,4]
[365706157,1749839438680,-460.0,0.00023013,4]
[365706158,1749839438690,-460.0,0.00023013,4]
[365706159,1749839438699,-460.0,0.00023013,4]
[365706160,1749839438709,-153.0,0.00023253,2]
[365706161,1749839438719,-176.9539549,0.0002326,2]
[365706162,1749839438728,-158.8399287,0.0002326,2]
[365706163,1749839438738,-573.6747916,0.0002326,2]
[365706164,1749839438748,-158.8399287,0.0002326,2]
[365706165,1749839438759,-153.0,0.0002326,2]
[365706166,1749839438769,-573.6747916,0.0002326,2]
[365706167,1749839438779,-176.9539549,0.0002326,2]
[365706168,1749839438789,-176.9539549,0.0002326,2]
[365706169,1749839438799,-158.8399287,0.0002326,2]
[365706170,1749839438809,-573.6747916,0.0002326,2]
[365706171,1749839438818,-353.5143112,0.0002326,2]
[365706172,1749839438828,-153.0,0.0002326,2]
[365706173,1749839438838,-573.6747916,0.0002326,2]
[365706174,1749839438847,-317.3886204,0.0002326,2]
[365706175,1749839438858,-572.6273356,0.0002326,2]
[365706176,1749839438867,-153.0,0.0002326,2]
[365706177,1749839438877,-153.0,0.0002326,2]
[365706178,1749839438886,-153.0,0.0002326,2]
[365706179,1749839438896,-365.0707398,0.00023267,2]
[365706180,1749839438907,-977.96,0.00023285,4]
[365706181,1749839438916,-460.0,0.00023285,4]
[365706182,1749839438925,-460.0,0.00023286,4]
[365706183,1749839438935,-698.22,0.00023286,4]
[365706184,1749839438945,-460.0,0.00023287,4]
[365706185,1749839438954,-985.66,0.00023287,4]
[365706186,1749839438964,-1388.22,0.00023287,4]
[365706187,1749839438974,-460.0,0.00023287,4]
[365706188,1749839438983,-460.0,0.00023287,4]
[365706189,1749839438994,-460.0,0.00023287,4]
[365706190,1749839439004,-150.0,0.000233,2]
[365706191,1749839439014,-3379.18,0.000233,7]
[365706192,1749839439025,-166.50369972,0.00023342,2]
[365706193,1749839439035,-500.0,0.00023449,4]
[365706194,1749839439045,-1537.0,0.0002345,2]
[365706195,1749839439054,-176.94650001,0.00023532,2]
[365706196,1749839439063,-430.98,0.00023559,4]
[365706197,1749839439073,-460.0,0.0002356,4]
[365706198,1749839439082,-698.22,0.0002356,4]
[365706199,1749839439091,-460.0,0.00023561,4]
[365706200,1749839439101,-985.66,0.00023561,4]
[365706201,1749839439111,-151.0,0.00023561,7]
[365706202,1749839439120,-1388.22,0.00023561,4]
[365706203,1749839439129,-460.0,0.00023561,4]
[365706204,1749839439139,-460.0,0.00023561,4]
[365706205,1749839439148,-180.48988612,0.00023561,4]
[365706206,1749839439157,-500.0,0.00023573,2]
[365706207,1749839439168,-500.0,0.00023573,2]
[365706208,1749839439176,-500.0,0.00023573,2]
[365706209,1749839439186,-500.0,0.00023573,2]
[365706210,1749839439197,-253620.78,0.000236,7]
[365706211,1749839439206,-141898.71,0.000236,2]
[365706212,1749839439216,-151.0,0.000236,7]
[365706213,1749839439226,-151.0,0.000236,7]
[365706214,1749839439238,-4486.0,0.00023613,7]
[365706215,1749839439247,-405.0,0.00023631,2]
[365706216,1749839439258,-150.0,0.00023706,2]
[365706217,1749839439268,-150.0,0.00023706,2]
[365706218,1749839439278,-587.0,0.00023712,2]
[365706219,1749839439288,-237.0,0.00023725,2]
[365706220,1749839439298,-854.38,0.000238,2]
[365706221,1749839439309,-223568.83117952,0.000238,3]
[365706222,1749839439322,-1297.80675792,0.000238,3]
[365706223,1749839439334,-797.76396517,0.000238,3]
[365706224,1749839439345,-798.71952578,0.000238,3]
[365706225,1749839439357,-994.378178,0.000238,3]
[365706256,1749839442931,-189399.94394171,0.000238,3]
[365706257,1749839442941,-160.0,0.000238,3]
[365706258,1749839442951,-460.0,0.00023834,4]
[365706259,1749839442960,-698.22,0.00023834,4]
[365706260,1749839442970,-241.12328144,0.00023835,4]
[365706262,1749839442979,-985.66,0.00023835,4]
[365706263,1749839442989,-1388.22,0.00023835,4]
[365706264,1749839442998,-460.0,0.00023835,4]
[365706265,1749839443012,-558.1693556,0.00023835,4]
[365706266,1749839443022,-977.96,0.00023899,4]
[365706267,1749839443031,-500.0,0.00023899,2]
[365706268,1749839443041,-160.0,0.00023899,2]
[365706269,1749839443050,-496.34,0.000239,31]
[365706270,1749839443060,-496.34,0.000239,31]
[365706271,1749839443069,-496.34,0.000239,31]
[365706272,1749839443078,-496.34,0.000239,31]
[365706273,1749839443088,-496.34,0.000239,31]
[365706274,1749839443097,-496.34,0.000239,31]
[365706275,1749839443106,-496.34,0.000239,31]
[365706276,1749839443116,-496.34,0.000239,31]
[365706277,1749839443126,-496.34,0.000239,31]
[365706278,1749839443135,-496.34,0.000239,31]
[365706279,1749839443144,-496.34,0.000239,31]
[365706280,1749839443154,-496.34,0.000239,31]
[365706281,1749839443163,-496.34,0.000239,31]
[365706282,1749839443173,-496.34,0.000239,31]
[365706283,1749839443183,-496.34,0.000239,31]
[365706284,1749839443193,-496.34,0.000239,31]
[365706285,1749839443202,-420.0,0.00023906,2]
[365706286,1749839443213,-1537.0,0.00023922,2]
[365706287,1749839443222,-237.0,0.00023963,2]
[365706288,1749839443233,-1000.0,0.00024,24]
[365706289,1749839443244,-151.0,0.00024,2]
[365706290,1749839443255,-229.78555783,0.00024,7]
[365706291,1749839443265,-835.28007164,0.00024,7]
[365706292,1749839443275,-424.32678023,0.00024,7]
[365706293,1749839443284,-160.0,0.00024,7]
[365706294,1749839443294,-176.2005054,0.00024082,2]
[365706295,1749839443305,-459.1516927,0.00024082,2]
[365706297,1749839443317,-573.4653004,0.00024082,2]
[365706298,1749839443327,-2423.944,0.00024104,2]
[365706299,1749839443337,-977.96,0.00024108,4]
[365706300,1749839443347,-485.16493095,0.00024108,4]
[365706301,1749839443359,-698.22,0.00024108,4]
[365706302,1749839443369,-985.66,0.00024109,4]
[365706303,1749839443379,-1388.22,0.00024109,4]
[365706304,1749839443388,-460.0,0.00024109,4]
[365706305,1749839443400,-237.0,0.00024111,2]
[365706306,1749839443410,-332.33359664,0.00024121,2]
[365706307,1749839443420,-1000.0,0.00024121,2]
[365706308,1749839443430,-1000.0,0.00024121,2]
[365706309,1749839443440,-215.0738,0.00024149,2]
[365706310,1749839443450,-160.0,0.00024197,2]
[365706311,1749839443460,-229.78555783,0.00024197,2]
[365706312,1749839443470,-835.28007164,0.00024197,2]
[365706313,1749839443479,-424.32678023,0.00024197,2]
[365706314,1749839443490,-9680.29,0.000242,7]
[365706315,1749839443499,-205.5872,0.000242,7]
[365706316,1749839443511,-153.0,0.00024226,2]
[365706317,1749839443521,-153.0,0.00024226,2]
[365706318,1749839443531,-153.0,0.00024226,2]
[365706319,1749839443541,-237.0,0.00024253,2]
[365706320,1749839443551,-317.0,0.0002432,3]
[365706321,1749839443560,-317.0,0.0002432,3]
[365706322,1749839443570,-318.92293093,0.0002432,3]
[365706323,1749839443580,-698.22,0.00024382,4]
[365706324,1749839443591,-985.66,0.00024383,4]
[365706325,1749839443602,-1388.22,0.00024383,4]
[365706326,1749839443612,-460.0,0.00024383,4]
[365706327,1749839443622,-1604.020361,0.00024387,3]
[365706328,1749839443632,-2000.0,0.000244,2]
[365706329,1749839443643,-2000.0,0.000244,2]
[365706330,1749839443652,-3379.18,0.000244,7]
[365706331,1749839443663,-1376.51,0.00024466,2]
[365706332,1749839443672,-500.0,0.000245,2]
[365706333,1749839443682,-237.0,0.00024549,2]
[365706335,1749839443692,-503.34321714,0.00024573,2]
[365706336,1749839443702,-500.0,0.00024573,2]
[365706337,1749839443711,-500.99252369,0.00024573,2]
[365706338,1749839443720,-600.0,0.00024573,2]
[365706339,1749839443730,-529.59107717,0.00024573,2]
[365706340,1749839443740,-500.0,0.00024573,2]
[365706341,1749839443750,-977.96,0.00024599,4]
[365706342,1749839443760,-496.34,0.000246,31]
[365706343,1749839443770,-496.34,0.000246,31]
[365706344,1749839443779,-496.34,0.000246,31]
[365706345,1749839443789,-496.34,0.000246,31]
[365706346,1749839443799,-496.34,0.000246,31]
[365706347,1749839443808,-496.34,0.000246,31]
[365706348,1749839443818,-496.34,0.000246,31]
[365706349,1749839443827,-496.34,0.000246,31]
[365706350,1749839443837,-496.34,0.000246,31]
[365706351,1749839443846,-496.34,0.000246,31]
[365706352,1749839443856,-496.34,0.000246,31]
[365706353,1749839443865,-496.34,0.000246,31]
[365706354,1749839443874,-496.34,0.000246,31]
[365706355,1749839443883,-496.34,0.000246,31]
[365706356,1749839443892,-496.34,0.000246,31]
[365706357,1749839443902,-496.34,0.000246,31]
[365706358,1749839443911,-496.34,0.000246,31]
[365706359,1749839443920,-496.34,0.000246,31]
[365706360,1749839443930,-496.34,0.000246,31]
[365706361,1749839443939,-496.34,0.000246,31]
[365706362,1749839443949,-496.34,0.000246,31]
[365706363,1749839443958,-496.34,0.000246,31]
[365706364,1749839443968,-496.34,0.000246,31]
[365706365,1749839443977,-496.34,0.000246,31]
[365706366,1749839443986,-253620.78,0.000246,7]
[365706367,1749839443995,-927.7123517,0.00024633,2]
[365706368,1749839444006,-645.84,0.00024639,5]
[365706369,1749839444015,-154.83151814,0.0002464,3]
[365706370,1749839444024,-5888.0,0.00024641,2]
[365706371,1749839444034,-698.22,0.00024656,4]
[365706372,1749839444044,-977.96,0.00024657,4]
[365706373,1749839444054,-985.66,0.00024657,4]
[365706374,1749839444063,-1388.22,0.00024657,4]
[365706375,1749839444072,-460.0,0.00024657,4]
[365706376,1749839444085,-1000.0,0.00024658,2]
[365706377,1749839444099,-1000.0,0.00024658,2]
[365706378,1749839444112,-1000.0,0.00024658,2]
[365706379,1749839444125,-1000.0,0.00024658,2]
[365706380,1749839444138,-1000.0,0.00024658,2]
[365706381,1749839444150,-1000.0,0.00024658,2]
[365706382,1749839444161,-570.0,0.00024658,2]
[365706383,1749839444175,-200.0,0.00024658,15]
[365706384,1749839444187,-380.0,0.00024658,2]
[365706385,1749839444199,-1500.0,0.00024668,2]
[365706386,1749839444211,-1500.0,0.00024668,2]
[365706387,1749839444223,-44589.97938851,0.000247,2]
[365706388,1749839444251,-97308.73061149,0.000247,2]
[365706389,1749839444270,-1259.32972544,0.00024748,28]
[365706390,1749839444285,-150.0,0.00024773,2]
[365706391,1749839444300,-977.96,0.00024799,4]
[365706392,1749839444312,-977.96,0.00024799,4]
[365706393,1749839444323,-2000.0,0.000248,2]
[365706394,1749839444334,-2000.0,0.000248,2]
[365706395,1749839444347,-202853.970653,0.000248,2]
[365706396,1749839444359,-162.95482579,0.00024813,2]
[365706397,1749839444370,-200.0,0.00024832,120]
[365706398,1749839444382,-645.84,0.00024839,3]
[365706399,1749839444394,-503.48503408,0.00024873,2]
[365706400,1749839444407,-500.0,0.00024873,2]
[365706401,1749839444419,-150.0,0.00024873,2]
[365706402,1749839444430,-1262.0,0.00024878,30]
[365706403,1749839444440,-977.96,0.0002488,4]
[365706404,1749839444452,-151.0,0.00024882,2]
[365706405,1749839444463,-151.0,0.00024882,2]
[365706406,1749839444475,-500.0,0.00024882,2]
[365706407,1749839444488,-158.91917642,0.00024882,2]
[365706408,1749839444500,-500.0,0.00024882,2]
[365706409,1749839444517,-500.0,0.00024882,2]
[365706410,1749839444530,-153.90997789,0.00024882,2]
[365706411,1749839444543,-151.0,0.00024882,2]
[365706412,1749839444555,-151.0,0.00024882,2]
[365706413,1749839444569,-300.28477608,0.00024882,2]
[365706414,1749839444583,-500.0,0.00024882,2]
[365706415,1749839444596,-426.0,0.00024882,2]
[365706416,1749839444607,-151.0,0.00024882,2]
[365706417,1749839444618,-151.77102034,0.00024882,2]
[365706418,1749839444629,-159.78301553,0.00024882,2]
[365706419,1749839444640,-151.0,0.00024882,2]
[365706420,1749839444652,-208.48728359,0.00024882,2]
[365706421,1749839444666,-977.96,0.00024884,4]
[365706422,1749839444678,-977.96,0.00024889,4]
[365706423,1749839444691,-977.96,0.00024889,4]
[365706424,1749839444701,-977.96,0.00024889,4]
[365706425,1749839444712,-977.96,0.00024889,4]
[365706426,1749839444723,-977.96,0.00024889,4]
[365706427,1749839444735,-977.96,0.00024889,4]
[365706428,1749839444748,-977.96,0.00024889,4]
[365706429,1749839444761,-977.96,0.00024889,4]
[365706430,1749839444772,-977.96,0.00024889,4]
[365706431,1749839444783,-977.96,0.00024889,4]
[365706432,1749839444793,-977.96,0.00024889,4]
[365706433,1749839444805,-978.13020548,0.00024889,4]
[365706434,1749839444816,-3800.86417205,0.000249,30]
[365706435,1749839444827,-200.0,0.000249,2]
[365706436,1749839444838,-250.0,0.000249,2]
[365706437,1749839444849,-250.0,0.000249,2]
[365706438,1749839444860,-250.0,0.000249,2]
[365706439,1749839444872,-250.0,0.000249,2]
[365706440,1749839444882,-250.0,0.000249,2]
[365706441,1749839444893,-250.0,0.000249,2]
[365706442,1749839444903,-250.0,0.000249,2]
[365706443,1749839444916,-250.0,0.000249,2]
[365706444,1749839444927,-250.0,0.000249,2]
[365706445,1749839444939,-250.0,0.000249,2]
[365706446,1749839444952,-250.0,0.000249,2]
[365706447,1749839444963,-250.0,0.000249,2]
[365706448,1749839444973,-250.0,0.000249,2]
[365706449,1749839444985,-250.0,0.000249,2]
[365706450,1749839444995,-250.0,0.000249,2]
[365706451,1749839445007,-250.0,0.000249,2]
[365706452,1749839445018,-250.0,0.000249,2]
[365706453,1749839445029,-300.6,0.000249,2]
[365706454,1749839445039,-415.22,0.000249,60]
[365706455,1749839445050,-151.0,0.000249,7]
[365706456,1749839445061,-153.164763,0.000249,7]
[365706457,1749839445072,-151.0,0.000249,7]
[365706458,1749839445083,-151.0,0.000249,7]
[365706459,1749839445094,-151.0,0.000249,7]
[365706460,1749839445105,-151.0,0.000249,7]
[365706461,1749839445118,-151.0,0.000249,7]
[365706462,1749839445129,-151.0,0.000249,7]
[365706463,1749839445140,-151.0,0.000249,7]
[365706464,1749839445152,-151.0,0.000249,7]
[365706465,1749839445163,-1584.471967,0.000249,2]
[365706466,1749839445175,-151.0,0.000249,7]
[365706467,1749839445186,-1584.471967,0.000249,2]
[365706468,1749839445196,-151.0,0.000249,7]
[365706469,1749839445206,-151.0,0.000249,7]
[365706470,1749839445216,-151.0,0.000249,7]
[365706471,1749839445226,-151.0,0.000249,7]
[365706472,1749839445240,-151.0,0.000249,7]
[365706473,1749839445250,-151.0,0.000249,7]
[365706474,1749839445262,-195.817607,0.000249,7]
[365706475,1749839445271,-195.817607,0.000249,7]
[365706476,1749839445282,-151.0,0.000249,7]
[365706477,1749839445292,-151.0,0.000249,7]
[365706478,1749839445301,-151.0,0.000249,7]
[365706479,1749839445312,-151.736753,0.000249,7]
[365706480,1749839445333,-151.0,0.000249,7]
[365706481,1749839445343,-151.0,0.000249,7]
[365706482,1749839445353,-151.0,0.000249,7]
[365706483,1749839445364,-151.0,0.000249,7]
[365706484,1749839445374,-835.28007164,0.000249,7]
[365706485,1749839445385,-207.292067,0.000249,7]
[365706486,1749839445395,-207.292067,0.000249,7]
[365706487,1749839445517,-97028.316533,0.000249,2]
[365706490,1749839446115,-2733.1616299,0.00023037,2]
[365706491,1749839446125,-283.49772872,0.00024573,2]
[365706492,1749839446135,-8201.33239701,0.000249,2]
[365706493,1749839446642,460.0,0.00021368,4]
[365706494,1749839450138,460.0,0.00021095,4]
[365706495,1749839450416,460.0,0.00021369,4]
[365706496,1749839450949,460.0,0.00021643,4]
[365706497,1749839455932,460.0,0.00021368,4]
[365706498,1749839456244,382.03,0.00021642,4]
[365706499,1749839459608,500.0,0.00021095,4]
[365706500,1749839460806,460.0,0.00021095,4]
[365706501,1749839461116,460.0,0.00021095,4]
[365706502,1749839461829,460.0,0.00021095,4]
[365706503,1749839462132,460.0,0.00021095,4]
[365706504,1749839464471,460.0,0.00021095,4]
[365706505,1749839465080,460.0,0.00021095,4]
[365706506,1749839465869,460.0,0.00021095,4]
[365706507,1749839466030,460.0,0.00021095,4]
[365706508,1749839466316,460.0,0.00021369,4]
[365706509,1749839466562,253.62,0.00021643,4]
[365706510,1749839470278,460.0,0.00021095,4]
[365706511,1749839475216,460.0,0.00021095,4]
[365706512,1749839475486,460.0,0.00021369,4]
[365706513,1749839475756,460.0,0.00021643,4]